bitfinex-derivatives/quotes_ETHF0:USTF0_20250629
["timestamp","ask_amount","ask_price","bid_price","bid_amount"]
[1751190575863,78.356,2455.2,2455.1,2.40125]
[1751190577669,6.487,2455.2,2455.1,9.73102547]
[1751190577870,6.487,2455.2,2455.1,11.20852547]
[1751190578164,6.487,2455.2,2455.1,10.00508225]
[1751190578358,6.487,2455.2,2455.1,7.08655]
[1751190579364,6.487,2455.2,2455.1,5.60905]
[1751190579558,7.30132,2455.2,2455.1,5.62856581]
[1751190579763,32.25432,2455.2,2455.1,5.62856581]
[1751190580365,32.946,2455.2,2455.1,5.62856581]
[1751190582569,32.946,2455.2,2455.1,5.22791839]
[1751190583672,33.76032,2455.2,2455.1,4.41356839]
[1751190583965,33.76032,2455.2,2455.1,5.22791839]
[1751190584169,32.946,2455.2,2455.1,5.22791839]
[1751190585068,1.506,2455.2,2455.1,5.22791839]
[1751190585266,32.94,2455.2,2455.1,5.22791839]
[1751190588677,32.94,2455.2,2455.1,4.02215]
[1751190589180,33.75432,2455.2,2455.1,0.81435]
[1751190589477,33.75432,2455.2,2455.0,4.41356839]
[1751190589478,0.81435,2455.1,2455.0,5.22792839]
[1751190589777,3.73288225,2455.1,2455.0,5.22792839]
[1751190589973,2.91853225,2455.1,2455.0,5.22792839]
[1751190590477,31.431,2455.1,2455.0,4.41356839]
[1751190590679,31.431,2455.1,2455.0,6.78834839]
[1751190594279,32.24535,2455.1,2455.0,6.78834839]
[1751190594480,31.431,2455.1,2455.0,6.78834839]
[1751190595283,32.24535,2455.1,2455.0,6.78834839]
[1751190596182,32.24535,2455.1,2455.0,5.58258]
[1751190596873,31.431,2455.1,2455.0,5.58258]
[1751190598486,1.4844,2455.3,2455.2,0.81432]
[1751190598782,32.8944,2455.3,2455.2,0.81432]
[1751190598989,7.9564,2455.3,2455.2,0.81432]
[1751190599185,7.9564,2455.3,2455.2,2.40472]
[1751190599186,32.8934,2455.3,2455.2,2.40472]
[1751190601384,7.9564,2455.3,2455.2,2.40472]
[1751190601589,32.8914,2455.3,2455.2,2.40472]
[1751190602185,32.8914,2455.3,2455.2,3.61139911]
[1751190605292,1.4844,2455.3,2455.2,3.61139911]
[1751190605492,32.8904,2455.3,2455.2,3.61139911]
[1751190607987,31.406,2455.3,2455.2,3.61139911]
[1751190608390,31.402,2455.3,2455.2,3.61139911]
[1751190608586,31.402,2455.3,2455.2,2.40472]
[1751190608787,31.402,2455.3,2455.2,4.01113581]
[1751190609388,1.5359,2455.6,2455.5,0.81422]
[1751190609693,8.88988481,2456.0,2455.9,0.81409]
[1751190610002,31.4,2456.0,2455.9,0.81409]
[1751190610590,0.81409,2455.9,2455.8,3.2078]
[1751190610796,1.5567,2455.9,2455.8,4.02192]
[1751190611390,32.9557,2455.9,2455.8,4.02192]
[1751190611990,32.9557,2455.9,2455.8,5.62833581]
[1751190612288,32.9557,2455.9,2455.8,4.02192]
[1751190612690,32.9557,2455.9,2455.8,5.54382]
[1751190613290,32.9557,2455.9,2455.8,6.7484389]
[1751190616396,32.9557,2455.9,2455.8,5.54382]
[1751190616702,35.87423225,2455.9,2455.8,3.2078]
[1751190617002,36.68832225,2455.9,2455.8,3.2078]
[1751190620400,36.68832225,2455.9,2455.8,4.02192]
[1751190620793,36.68832225,2455.9,2455.8,3.2078]
[1751190621194,36.68832225,2455.9,2455.8,4.02192]
[1751190624400,36.68832225,2455.9,2455.8,3.2078]
[1751190625799,0.81412,2455.8,2455.7,0.81415]
[1751190626000,0.81412,2455.8,2455.7,4.02195]
[1751190629709,35.87423225,2455.9,2455.7,4.02195]
[1751190629710,36.68833225,2455.9,2455.8,0.81412]
[1751190630102,5.28933225,2455.9,2455.8,0.81412]
[1751190630301,36.65233225,2455.9,2455.8,0.81412]
[1751190631608,1.5567,2455.9,2455.8,0.81412]
[1751190631803,32.9187,2455.9,2455.8,2.44082]
[1751190633606,0.81405,2456.0,2455.9,0.81409]
[1751190633812,31.36,2456.0,2455.9,2.34399]
[1751190634013,6.456,2456.0,2455.9,2.34399]
[1751190634209,31.358,2456.0,2455.9,2.34399]
[1751190634813,32.9671,2456.0,2455.9,2.34399]
[1751190636103,8.0651,2456.0,2455.9,2.34399]
[1751190636308,32.9661,2456.0,2455.9,2.34399]
[1751190636504,0.81402,2456.1,2455.9,1.5299]
[1751190636712,31.356,2456.0,2455.9,5.26252225]
[1751190636912,1.6293,2456.3,2456.2,0.81399]
[1751190637216,32.9843,2456.3,2456.2,0.81399]
[1751190637616,0.814,2456.2,2456.1,0.814]
[1751190637812,3.73253225,2456.2,2456.1,0.814]
[1751190638205,1.6293,2456.3,2456.2,0.81399]
[1751190638408,32.9833,2456.3,2456.2,0.81399]
[1751190640017,36.71578225,2456.3,2456.2,0.81399]
[1751190640513,35.90183225,2456.3,2455.9,1.2046189]
[1751190640720,3.73258225,2456.1,2456.0,0.81405]
[1751190640914,28.62758225,2456.1,2456.0,0.81405]
[1751190641425,0.81405,2456.0,2455.9,2.0186789]
[1751190641610,1.5502,2456.0,2455.9,2.0186789]
[1751190641921,32.9012,2456.0,2455.9,2.0186789]
[1751190643515,32.9012,2456.0,2455.9,2.42047581]
[1751190644621,33.71525,2456.0,2455.9,2.42047581]
[1751190644823,33.71525,2456.0,2455.9,1.60641581]
[1751190645623,5.28278225,2456.0,2455.9,1.60641581]
[1751190645924,36.62978225,2456.0,2455.9,1.60641581]
[1751190648027,0.81409,2455.9,2455.8,1.60641581]
[1751190648226,2.34709,2455.9,2455.8,1.60641581]
[1751190649023,0.81412,2455.8,2455.7,1.60641581]
[1751190649225,30.13305225,2455.8,2455.7,1.60641581]
[1751190649429,30.13305225,2455.8,2455.7,1.20555971]
[1751190651228,28.62065225,2455.8,2455.7,1.20555971]
[1751190657824,0.81415,2455.7,2455.6,2.01973971]
[1751190658024,8.88065,2455.7,2455.6,2.01973971]
[1751190658731,8.88065,2455.7,2455.6,1.20555971]
[1751190660525,8.88065,2455.7,2455.4,1.60663587]
[1751190660526,0.81422,2455.5,2455.4,1.60663587]
[1751190660832,25.69422,2455.5,2455.4,1.60663587]
[1751190661232,0.81429,2455.3,2455.2,3.22197477]
[1751190661433,32.13629,2455.3,2455.2,0.8143]
[1751190661931,0.81432,2455.2,2455.1,3.2078]
[1751190662233,3.73285225,2455.2,2455.1,3.2078]
[1751190663132,3.73285225,2455.2,2455.1,4.02215]
[1751190664031,3.73285225,2455.2,2455.1,3.2078]
[1751190664232,2.91853225,2455.2,2454.7,7.29117477]
[1751190664534,3.73298225,2454.8,2454.7,7.19387477]
[1751190664734,35.05398225,2454.8,2454.7,5.61547477]
[1751190665134,35.05398225,2454.8,2454.7,3.2078]
[1751190666239,0.81448,2454.7,2454.5,3.98607477]
[1751190666536,24.88,2454.6,2454.5,4.80059477]
[1751190666736,25.69452,2454.6,2454.5,3.98607477]
[1751190667334,24.88,2454.6,2454.5,4.80062477]
[1751190668338,24.88,2454.6,2454.5,2.39295]
[1751190668532,25.69452,2454.6,2454.5,2.39295]
[1751190668732,24.88,2454.6,2454.5,2.39295]
[1751190671535,5.36098225,2454.8,2454.7,0.81448]
[1751190671832,31.321,2454.8,2454.7,0.81448]
[1751190672033,32.13545,2454.8,2454.7,0.81448]
[1751190672540,32.13545,2454.8,2454.7,2.45488]
[1751190673240,35.05398225,2454.8,2454.7,2.45488]
[1751190673545,35.05298225,2454.8,2454.7,2.45488]
[1751190673734,35.05298225,2454.8,2454.7,0.81448]
[1751190673932,34.23853225,2454.8,2454.7,0.81448]
[1751190674541,35.05298225,2454.8,2454.7,0.81448]
[1751190674840,34.23853225,2454.8,2454.7,0.81448]
[1751190675846,35.05298225,2454.8,2454.7,0.81448]
[1751190676142,34.23853225,2454.8,2454.7,0.81448]
[1751190677445,35.05298225,2454.8,2454.7,0.81448]
[1751190678145,35.05298225,2454.8,2454.6,2.48419]
[1751190678146,0.81448,2454.7,2454.6,2.48419]
[1751190678536,2.37158,2454.7,2454.6,2.48419]
[1751190680041,2.37158,2454.7,2454.6,1.6697]
[1751190680242,1.5571,2454.7,2454.3,3.2078]
[1751190680455,2.91853225,2454.4,2454.3,7.27932]
[1751190680654,34.23453225,2454.4,2454.3,7.27932]
[1751190684143,34.23453225,2454.4,2454.3,4.02242]
[1751190684348,35.79023225,2454.4,2454.3,4.02242]
[1751190685052,36.60481225,2454.4,2454.3,4.02242]
[1751190686046,0.81464,2454.3,2454.2,0.81464]
[1751190686650,0.81465,2454.2,2454.1,3.1609]
[1751190686847,0.81468,2454.1,2454.0,5.61547477]
[1751190687041,8.79778,2454.1,2454.0,3.22239477]
[1751190687247,8.79778,2454.1,2454.0,0.81472]
[1751190687442,1.5531,2454.1,2454.0,0.81472]
[1751190687750,31.299,2454.1,2454.0,0.81472]
[1751190688150,31.299,2454.1,2454.0,2.35942]
[1751190690752,28.0748,2454.2,2454.1,0.81468]
[1751190690953,34.5048,2454.2,2454.1,0.81468]
[1751190691455,34.5048,2454.2,2454.1,2.39758]
[1751190694055,36.1002,2454.2,2454.1,2.39758]
[1751190695358,4.8032,2454.2,2454.1,2.39758]
[1751190695558,34.5038,2454.2,2454.1,2.39758]
[1751190695759,35.31845,2454.2,2454.1,2.39758]
[1751190696760,38.23698225,2454.2,2454.1,0.81468]
[1751190697656,37.42233225,2454.2,2454.1,0.81468]
[1751190698060,34.5038,2454.2,2454.1,0.81468]
[1751190698260,34.5038,2454.2,2454.1,2.49488]
[1751190700165,31.296,2454.2,2454.1,2.49488]
[1751190702065,6.43,2454.2,2454.1,2.49488]
[1751190702264,31.294,2454.2,2454.1,2.49488]
[1751190705672,0.81459,2454.4,2454.3,0.81462]
[1751190705968,32.10759,2454.4,2454.3,0.81462]
[1751190706560,35.02612225,2454.4,2454.3,0.81462]
[1751190707677,0.81465,2454.2,2454.1,2.49486]
[1751190707872,0.81471,2454.1,2454.0,0.8147]
[1751190708069,0.81472,2454.0,2453.9,0.81473]
[1751190708265,0.81475,2453.9,2453.8,2.42066764]
[1751190708465,28.59227225,2454.0,2453.9,0.81475]
[1751190708666,28.59226225,2454.0,2453.9,0.81475]
[1751190708871,27.77753225,2454.0,2453.9,0.81475]
[1751190709572,28.59225225,2454.0,2453.9,0.81475]
[1751190709774,0.81475,2453.9,2453.8,2.42066764]
[1751190710073,28.59226225,2454.0,2453.9,0.81475]
[1751190710268,0.81475,2453.9,2453.8,2.42066764]
[1751190710459,0.81474,2454.0,2453.9,0.81472]
[1751190710664,31.288,2454.0,2453.9,0.81472]
[1751190710869,7.04224225,2454.1,2454.0,0.81472]
[1751190711070,38.33024225,2454.1,2454.0,0.81472]
[1751190711874,0.81472,2454.0,2453.9,2.42063764]
[1751190712873,38.33024225,2454.1,2454.0,0.81472]
[1751190713172,37.51553225,2454.1,2454.0,0.81472]
[1751190713373,38.33021225,2454.1,2454.0,0.81472]
[1751190716774,0.81472,2454.0,2453.9,2.42063764]
[1751190721974,38.33024225,2454.1,2454.0,0.81472]
[1751190722175,38.33024225,2454.1,2454.0,2.02257533]
[1751190724081,38.33024225,2454.1,2454.0,1.20785533]
[1751190726176,39.88874225,2454.1,2454.0,1.20785533]
[1751190726887,0.81475,2453.9,2453.8,1.60590764]
[1751190727080,0.81478,2453.8,2453.7,2.42071764]
[1751190727279,8.89338,2453.8,2453.7,0.81481]
[1751190727487,8.89338,2453.8,2453.6,5.71210129]
[1751190727688,24.848,2453.7,2453.6,5.71210129]
[1751190728187,24.848,2453.7,2453.6,4.10619365]
[1751190728776,24.848,2453.7,2453.4,2.36771863]
[1751190728777,0.81488,2453.5,2453.4,2.36771863]
[1751190728979,0.81488,2453.5,2453.2,0.81496]
[1751190728980,37.39233225,2453.5,2453.2,0.81496]
[1751190729180,5.39305225,2453.4,2453.3,0.81495]
[1751190729577,35.84313225,2453.4,2452.3,0.08356365]
[1751190729782,6.12633225,2453.1,2453.0,0.81505]
[1751190730076,30.97333225,2453.1,2453.0,0.81505]
[1751190730286,38.20736225,2453.1,2452.9,2.50247]
[1751190730483,1.6595,2453.0,2452.9,2.50247]
[1751190730683,2.47455,2453.0,2452.9,2.50247]
[1751190730891,1.6595,2453.0,2452.9,2.50247]
[1751190731992,2.47455,2453.0,2452.9,2.50247]
[1751190732484,1.6595,2453.0,2452.9,2.50247]
[1751190733490,32.9295,2453.0,2452.9,2.50247]
[1751190734284,6.12633225,2453.1,2453.0,0.81505]
[1751190734491,34.4778,2453.1,2453.0,5.34208225]
[1751190734989,28.0578,2453.4,2453.3,0.81495]
[1751190735593,28.0578,2453.4,2453.3,2.42345]
[1751190735785,3.2078,2453.4,2453.3,2.42345]
[1751190736488,28.0588,2453.4,2453.3,2.42345]
[1751190738497,3.2078,2453.4,2453.3,2.42345]
[1751190738696,28.0588,2453.4,2453.3,2.42345]
[1751190739993,3.2078,2453.4,2453.3,7.42345]
[1751190741492,3.2078,2453.4,2453.3,2.42345]
[1751190746002,28.0578,2453.4,2453.3,2.42345]
[1751190748500,3.2078,2453.4,2453.3,2.42345]
[1751190751096,2.43972,2454.0,2453.4,2.03725]
[1751190751097,3.2078,2453.7,2453.4,2.03725]
[1751190751297,3.2078,2453.7,2453.5,3.3155]
[1751190751497,3.2078,2453.7,2453.6,1.6465]
[1751190751698,3.2078,2453.7,2453.6,2.46135]
[1751190751893,3.2078,2453.7,2453.6,5.37988225]
[1751190752191,3.2078,2453.7,2453.6,7.07908225]
[1751190753907,9.6218,2453.8,2453.7,0.81482]
[1751190754209,9.6218,2453.8,2453.7,2.49382]
[1751190758211,3.2078,2453.8,2453.7,2.49382]
[1751190761213,32.07159,2454.4,2454.2,0.81465]
[1751190761413,32.07159,2454.4,2454.2,4.02245]
[1751190761913,2.38532,2454.3,2454.2,3.2078]
[1751190762116,4.09032,2454.3,2454.2,3.2078]
[1751190762912,1.5707,2454.3,2454.2,4.02245]
[1751190763509,2.38532,2454.3,2454.2,4.02245]
[1751190763816,1.5707,2454.3,2454.2,4.02245]
[1751190764320,3.1856,2454.3,2454.2,4.02245]
[1751190765010,28.0276,2454.3,2454.2,4.02245]
[1751190765220,3.1856,2454.3,2454.2,4.02245]
[1751190774720,3.1856,2454.3,2454.2,0.81465]
[1751190774926,3.1856,2454.3,2454.2,4.02245]
[1751190779128,6.413,2454.4,2454.3,0.81462]
[1751190779324,46.942,2454.9,2454.5,0.81455]
[1751190779325,6.407,2454.6,2454.5,0.81455]
[1751190779630,6.407,2454.6,2454.5,8.50078225]
[1751190779831,31.241,2454.9,2454.8,0.81445]
[1751190780528,32.8939,2454.9,2454.8,0.81445]
[1751190780728,32.8939,2454.9,2454.7,1.5598]
[1751190780729,35.81243225,2454.9,2454.7,1.5598]
[1751190780927,36.62686225,2454.9,2454.8,0.81445]
[1751190781528,35.81243225,2454.9,2454.8,0.81445]
[1751190782429,36.62685225,2454.9,2454.8,0.81445]
[1751190783330,32.8939,2454.9,2454.8,0.81445]
[1751190783727,3.2078,2455.1,2454.7,4.46173225]
[1751190783929,31.238,2455.2,2455.1,0.81435]
[1751190784134,6.407,2455.2,2455.1,0.81435]
[1751190784936,7.22132,2455.2,2455.1,0.81435]
[1751190785230,7.22134,2455.2,2455.1,0.81435]
[1751190785432,31.237,2455.2,2455.1,0.81435]
[1751190785931,3.3241,2455.4,2455.3,0.81428]
[1751190786136,9.7301,2455.4,2455.3,0.81428]
[1751190786442,6.406,2455.4,2455.3,0.81428]
[1751190786631,32.8643,2455.6,2455.5,0.81422]
[1751190786830,6.406,2455.6,2455.5,0.81422]
[1751190787030,6.406,2455.6,2455.5,4.02202]
[1751190787533,6.406,2455.6,2455.5,5.64862]
[1751190789236,7.22019,2455.6,2455.5,4.02202]
[1751190790228,6.406,2455.6,2455.5,4.02202]
[1751190790729,6.24893225,2455.8,2455.7,0.81415]
[1751190790923,37.47893225,2455.8,2455.7,0.81415]
[1751190791535,38.29305225,2455.8,2455.7,0.81415]
[1751190791726,37.47893225,2455.8,2455.7,0.81415]
[1751190791924,34.5604,2455.8,2455.7,0.81415]
[1751190792324,5.25827301,2456.1,2455.5,4.7852]
[1751190792532,0.81409,2455.9,2455.8,0.8141]
[1751190793430,0.81413,2455.8,2455.7,0.81413]
[1751190793629,0.81417,2455.7,2455.6,0.81417]
[1751190793944,0.81419,2455.6,2455.5,4.02199]
[1751190794131,13.39611225,2455.7,2455.6,0.81419]
[1751190794838,0.81419,2455.6,2455.5,4.022]
[1751190795633,13.39610225,2455.7,2455.6,0.81419]
[1751190796235,12.58193225,2455.7,2455.6,0.81419]
[1751190796535,13.39608225,2455.7,2455.6,0.81419]
[1751190796938,9.6634,2455.7,2455.6,0.81419]
[1751190797141,0.81419,2455.6,2455.5,4.02199]
[1751190797340,28.55172225,2455.6,2455.5,4.02199]
[1751190797838,28.55172225,2455.6,2455.5,4.02202]
[1751190799142,28.55172225,2455.6,2455.5,3.2078]
[1751190799730,30.22942225,2455.6,2455.5,3.2078]
[1751190802045,0.81428,2455.3,2455.2,4.0221]
[1751190802241,32.03528,2455.3,2455.2,4.0221]
[1751190802740,32.9124,2455.3,2455.2,4.0221]
[1751190804039,33.72668,2455.3,2455.2,4.0221]
[1751190804647,33.72668,2455.3,2455.2,4.02212]
[1751190807349,36.64521225,2455.3,2455.2,4.02212]
[1751190809143,36.64521225,2455.3,2455.2,3.2078]
[1751190810949,36.64521225,2455.3,2455.2,4.02212]
[1751190811549,36.64521225,2455.3,2455.2,3.2078]
[1751190813646,36.63721225,2455.3,2455.2,3.2078]
[1751190814249,4.60993225,2455.3,2455.2,4.02212]
[1751190814451,32.9044,2455.3,2455.2,4.02212]
[1751190815051,32.9044,2455.3,2455.2,5.63082]
[1751190815450,33.71868,2455.3,2455.2,5.63082]
[1751190817150,32.9044,2455.3,2455.2,5.63082]
[1751190817553,31.213,2455.3,2455.2,5.63082]
[1751190819752,0.81425,2455.4,2455.3,0.81428]
[1751190819953,32.02725,2455.4,2455.3,2.43598]
[1751190821151,31.213,2455.4,2455.3,2.43598]
[1751190821453,6.4,2455.4,2455.3,2.43598]
[1751190821654,31.213,2455.4,2455.3,2.43598]
[1751190821950,6.4,2455.4,2455.3,2.43598]
[1751190822156,31.212,2455.4,2455.3,2.43598]
[1751190825260,32.02625,2455.4,2455.3,2.43598]
[1751190825960,31.212,2455.4,2455.3,2.43598]
[1751190826349,2.4923,2455.6,2455.3,1.6217]
[1751190826552,31.21,2455.5,2455.4,2.48055]
[1751190827655,32.02422,2455.5,2455.4,2.48055]
[1751190828058,31.21,2455.5,2455.4,2.48055]
[1751190828363,32.02422,2455.5,2455.4,2.48055]
[1751190828663,31.21,2455.5,2455.4,2.48055]
[1751190829760,2.49231,2455.6,2455.5,0.81422]
[1751190829960,31.207,2455.6,2455.5,2.49932]
[1751190830563,32.02119,2455.6,2455.5,2.49932]
[1751190833464,6.399,2455.6,2455.5,2.49932]
[1751190833660,31.206,2455.6,2455.5,5.70712]
[1751190834868,32.02019,2455.6,2455.5,5.70712]
[1751190835255,31.205,2455.6,2455.5,5.70712]
[1751190837266,32.01919,2455.6,2455.5,5.70712]
[1751190837862,32.01919,2455.6,2455.5,6.91048641]
[1751190838267,32.01919,2455.6,2455.5,5.70712]
[1751190839957,31.205,2455.6,2455.5,5.70712]
[1751190840969,31.202,2455.6,2455.5,6.91048641]
[1751190841369,6.399,2455.6,2455.5,6.91048641]
[1751190842368,5.43960225,2456.0,2455.9,0.81409]
[1751190842564,35.81953225,2456.0,2455.8,3.2078]
[1751190842764,0.81409,2455.9,2455.8,4.0219]
[1751190842963,25.61609,2455.9,2455.8,4.0219]
[1751190843466,25.61609,2455.9,2455.8,5.5822]
[1751190845265,25.61609,2455.9,2455.8,2.3744]
[1751190845665,0.81409,2455.9,2455.8,2.3744]
[1751190845869,32.00609,2455.9,2455.8,5.5822]
[1751190846372,31.192,2455.9,2455.8,5.5822]
[1751190846572,32.00609,2455.9,2455.8,5.5822]
[1751190848975,32.00609,2455.9,2455.8,3.2078]
[1751190850479,0.81412,2455.8,2455.7,2.37794]
[1751190850679,3.73265225,2455.8,2455.7,2.37794]
[1751190851579,0.81415,2455.7,2455.6,0.81417]
[1751190851779,27.22425,2455.7,2455.6,0.81417]
[1751190852678,26.4101,2455.7,2455.6,0.81417]
[1751190854073,26.4101,2455.7,2455.6,2.43567]
[1751190854680,27.22425,2455.7,2455.6,2.43567]
[1751190855179,26.4101,2455.7,2455.6,2.43567]
[1751190855779,1.6141,2455.7,2455.6,2.43567]
[1751190855982,31.183,2455.7,2455.6,2.43567]
[1751190856175,31.183,2455.7,2455.6,3.63903641]
[1751190857273,31.183,2455.7,2455.6,2.43567]
[1751190857878,32.851,2455.7,2455.6,2.43567]
[1751190858281,33.66515,2455.7,2455.6,3.63903641]
[1751190858782,33.66515,2455.7,2455.6,2.01753641]
[1751190859181,2.48215,2455.7,2455.6,2.01753641]
[1751190859580,33.66415,2455.7,2455.6,2.01753641]
[1751190860184,33.66415,2455.7,2455.6,0.81417]
[1751190862180,32.85,2455.7,2455.6,0.81417]
[1751190863489,32.849,2455.7,2455.6,3.67333641]
[1751190863786,31.181,2455.7,2455.6,3.67333641]
[1751190867686,32.7564,2455.7,2455.6,3.67333641]
[1751190869888,33.57055,2455.7,2455.6,3.67333641]
[1751190871289,32.7564,2455.7,2455.6,3.67333641]
[1751190872292,32.7564,2455.7,2455.6,2.46997]
[1751190873092,0.81407,2456.0,2455.6,3.69125]
[1751190873286,31.166,2455.9,2455.8,3.2078]
[1751190873591,31.166,2455.9,2455.8,4.02192]
[1751190874190,1.6024,2456.0,2455.9,0.81409]
[1751190874391,32.7684,2456.0,2455.9,2.02055104]
[1751190874893,33.58245,2456.0,2455.9,2.02055104]
[1751190875486,33.58245,2456.0,2455.9,0.81409]
[1751190876894,0.81409,2455.9,2455.8,4.41426104]
[1751190877191,5.0,2455.9,2455.5,4.41426104]
[1751190877391,3.73270225,2455.7,2455.6,0.81417]
[1751190877592,0.81419,2455.6,2455.5,5.22846104]
[1751190877793,27.21989,2455.6,2455.5,5.22846104]
[1751190877992,28.85229,2455.6,2455.5,5.22846104]
[1751190879397,28.85229,2455.6,2455.5,3.2078]
[1751190880892,28.85229,2455.6,2455.5,4.02202]
[1751190881806,28.0381,2455.6,2455.5,4.02202]
[1751190882208,28.85229,2455.6,2455.5,4.02202]
[1751190884110,28.0381,2455.6,2455.5,4.02202]
[1751190884616,28.85229,2455.6,2455.5,4.02202]
[1751190889214,28.0381,2455.6,2455.5,4.02202]
[1751190891108,28.85229,2455.6,2455.5,4.02202]
[1751190892020,28.85229,2455.6,2455.5,0.81422]
[1751190892214,28.0381,2455.6,2455.5,4.02202]
[1751190892413,34.4151,2455.6,2455.5,4.02202]
[1751190892614,35.22929,2455.6,2455.5,4.02202]
[1751190895020,34.4151,2455.6,2455.5,4.02202]
[1751190895821,35.22929,2455.6,2455.5,4.02202]
[1751190896020,34.4151,2455.6,2455.5,4.02202]
[1751190897723,34.4131,2455.6,2455.5,4.02202]
[1751190898222,9.6411,2455.6,2455.5,4.02202]
[1751190898520,34.4121,2455.6,2455.5,4.02202]
[1751190898718,31.96819,2455.6,2455.5,5.78402]
[1751190900531,0.81417,2455.7,2455.6,0.81419]
[1751190900727,0.81413,2455.8,2455.7,0.81412]
[1751190901028,31.96613,2455.8,2455.7,0.81412]
[1751190901526,31.152,2455.8,2455.7,0.81412]
[1751190901928,31.96612,2455.8,2455.7,0.81412]
[1751190902129,31.152,2455.8,2455.7,0.81412]
[1751190902328,2.55,2455.9,2455.8,0.81412]
[1751190902521,32.8769,2455.9,2455.8,0.81412]
[1751190902922,1.7052,2456.0,2455.9,0.81409]
[1751190903124,32.8462,2456.0,2455.9,2.57669]
[1751190903325,32.8462,2456.0,2455.9,4.26419]
[1751190904429,33.66025,2456.0,2455.9,4.26419]
[1751190904630,32.8462,2456.0,2455.9,4.26419]
[1751190904825,33.66025,2456.0,2455.9,4.26419]
[1751190905329,1.7052,2456.0,2455.9,4.26419]
[1751190905525,33.65825,2456.0,2455.9,4.26419]
[1751190907333,1.6257,2456.1,2456.0,0.81405]
[1751190907528,32.7627,2456.1,2456.0,2.52325]
[1751190907825,33.57672,2456.1,2456.0,2.52325]
[1751190908728,32.7627,2456.1,2456.0,2.52325]
[1751190908926,7.9987,2456.1,2456.0,2.52325]
[1751190909122,33.57572,2456.1,2456.0,2.52325]
[1751190909322,8.81272,2456.1,2456.0,1.7092]
[1751190909526,7.9987,2456.1,2456.0,2.52325]
[1751190909728,31.136,2456.1,2456.0,2.52325]
[1751190910329,31.95002,2456.1,2456.0,2.52325]
[1751190911537,31.136,2456.1,2456.0,2.52325]
[1751190912437,6.373,2456.1,2456.0,2.52325]
[1751190912630,31.134,2456.1,2456.0,2.52325]
[1751190912824,31.94802,2456.1,2456.0,2.52325]
[1751190913029,31.134,2456.1,2456.0,2.52325]
[1751190913436,31.94802,2456.1,2456.0,2.52325]
[1751190914240,31.134,2456.1,2456.0,2.52325]
[1751190915538,31.94802,2456.1,2456.0,2.52325]
[1751190917941,31.94802,2456.1,2456.0,1.7092]
[1751190918445,0.81409,2455.9,2455.8,4.41426104]
[1751190918638,27.61414014,2455.9,2455.8,5.22838104]
[1751190921339,27.61414014,2455.9,2455.7,1.20646104]
[1751190921642,0.81419,2455.6,2455.5,3.2078]
[1751190921844,25.56819,2455.6,2455.5,3.2078]
[1751190922046,31.93919,2455.6,2455.5,4.9209]
[1751190922340,31.93919,2455.6,2455.5,5.7351]
[1751190923541,31.125,2455.6,2455.5,5.7351]
[1751190924837,31.125,2455.6,2455.5,7.34083345]
[1751190926138,31.124,2455.6,2455.5,6.52663345]
[1751190926340,31.124,2455.6,2455.5,7.34085345]
[1751190927936,6.372,2455.6,2455.5,7.34085345]
[1751190928337,0.8141,2455.9,2455.8,0.81412]
[1751190928546,1.6414,2456.0,2455.9,0.81409]
[1751190928746,6.372,2455.9,2455.8,4.02192]
[1751190929448,6.372,2455.9,2455.8,4.41389761]
[1751190929449,7.18609,2455.9,2455.8,4.41389761]
[1751190929639,8.82749,2455.9,2455.8,3.2078]
[1751190930045,8.82749,2455.9,2455.8,4.02192]
[1751190931247,8.82749,2455.9,2455.8,5.22801761]
[1751190932756,8.82749,2455.9,2455.8,4.41389761]
[1751190934247,8.82749,2455.9,2455.8,5.22801761]
[1751190934448,8.82749,2455.9,2455.8,4.41389761]
[1751190935744,8.82749,2455.9,2455.8,1.20609761]
[1751190936342,8.82749,2455.9,2455.8,2.02021761]
[1751190936544,8.82749,2455.9,2455.8,1.20609761]
[1751190936845,8.82749,2455.9,2455.8,2.02021761]
[1751190937643,8.82749,2455.9,2455.8,1.20609761]
[1751190942352,8.82749,2455.9,2455.8,2.02021761]
[1751190946557,10.87037593,2455.9,2455.8,2.02021761]
[1751190946955,10.87037593,2455.9,2455.8,1.20609761]
[1751190947155,10.87037593,2455.9,2455.8,2.02021761]
[1751190947556,10.87037593,2455.9,2455.8,1.20609761]
[1751190950849,10.87037593,2455.9,2455.6,4.41389761]
[1751190950850,0.81415,2455.7,2455.6,4.41389761]
[1751190951051,27.59403593,2455.7,2455.6,4.41389761]
[1751190951755,6.362,2455.9,2455.6,5.25068593]
[1751190951953,6.362,2455.9,2455.8,4.06397684]
[1751190952257,6.362,2455.9,2455.8,2.85700593]
[1751190952456,6.362,2455.9,2455.8,6.30980593]
[1751190953557,6.362,2455.9,2455.8,7.91553938]
[1751190954758,6.362,2455.9,2455.8,8.78987409]
[1751190958863,6.362,2455.9,2455.8,5.87265345]
[1751190960164,6.362,2455.9,2455.8,4.26692]
[1751190961765,6.362,2455.9,2455.8,6.67853872]
[1751190971068,6.362,2455.9,2455.8,4.96093872]
[1751190973566,14.27922064,2455.9,2455.8,1.60615805]
[1751190973764,0.81442,2454.9,2454.8,4.01540387]
[1751190973971,0.81452,2454.6,2454.4,5.63545654]
[1751190974271,12.47802064,2454.6,2454.1,13.64195786]
[1751190974570,3.73183064,2454.4,2454.2,2.036]
[1751190974767,7.16762,2454.3,2454.2,2.036]
[1751190975358,6.353,2454.3,2454.2,2.036]
[1751190976068,7.16762,2454.3,2454.2,2.036]
[1751190976457,6.353,2454.3,2454.2,2.036]